fUSD/lending_fUSD_20260227
["ID","MTS","AMOUNT","RATE_DAILY","PERIOD"]
[406778707,1772178631511,-1765.77,6.749e-05,2]
[406778708,1772178631521,-638.15236628,6.946e-05,2]
[406778709,1772178631532,-600.09467,6.946e-05,2]
[406778710,1772178631543,-387.105,6.946e-05,2]
[406778711,1772178631555,-140.41796372,6.946e-05,2]
[406778712,1772178631564,-435.16971498,7.143e-05,2]
[406778713,1772178631575,-412.77728069,7.143e-05,2]
[406778714,1772178631586,-917.82300433,7.143e-05,2]
[406778715,1772178631596,-300.0,7.206e-05,2]
[406778716,1772178631609,-1200.0,7.206e-05,2]
[406778717,1772178631622,-446.90007245,7.207e-05,2]
[406778718,1772178631632,-4971.81836393,7.207e-05,2]
[406778719,1772178631656,-28.18163607,7.207e-05,2]
[406778720,1772178631666,-250.0,7.207e-05,2]
[406778721,1772178631675,-127.04984387,7.34e-05,2]
[406778722,1772178631686,-584.79955105,7.34e-05,2]
[406778723,1772178631698,-710.0,7.34e-05,2]
[406778724,1772178631710,-343.92060508,7.34e-05,2]
[406778725,1772178631720,-1765.77,7.538e-05,2]
[406778726,1772178631729,-1765.77,7.735e-05,2]
[406778727,1772178631738,-420.0,7.926e-05,2]
[406778728,1772178631748,-1680.0,7.926e-05,2]
[406778729,1772178631758,-1765.77,7.932e-05,2]
[406778730,1772178631767,-618.0,7.94e-05,2]
[406778731,1772178631777,-1765.77,8.129e-05,2]
[406778732,1772178631787,-154.38169,8.219e-05,2]
[406778733,1772178631797,-257.302818,8.219e-05,2]
[406778734,1772178631806,-309.884,8.224e-05,2]
[406778735,1772178631816,-1979.382,8.224e-05,2]
[406778736,1772178631825,-936.35900762,8.291e-05,2]
[406778737,1772178631834,-150.0,8.291e-05,2]
[406778738,1772178631844,-500.0,8.291e-05,2]
[406778739,1772178631853,-247.75345648,8.291e-05,2]
[406778740,1772178631864,-193.43985656,8.291e-05,2]
[406778741,1772178631873,-357.14709184,8.291e-05,2]
[406778742,1772178631883,-500.0,8.291e-05,2]
[406778743,1772178631892,-264.25675022,8.291e-05,2]
[406778744,1772178631902,-500.0,8.291e-05,2]
[406778745,1772178631911,-500.0,8.291e-05,2]
[406778746,1772178631920,-500.0,8.291e-05,2]
[406778747,1772178631930,-160.88049104,8.291e-05,2]
[406778748,1772178631940,-500.0,8.291e-05,2]
[406778749,1772178631949,-500.0,8.291e-05,2]
[406778750,1772178631959,-500.0,8.291e-05,2]
[406778751,1772178631968,-500.0,8.291e-05,2]
[406778752,1772178631977,-150.0,8.291e-05,2]
[406778753,1772178631987,-500.0,8.291e-05,2]
[406778754,1772178631996,-500.0,8.291e-05,2]
[406778755,1772178632007,-500.0,8.291e-05,2]
[406778756,1772178632016,-500.0,8.291e-05,2]
[406778757,1772178632026,-500.0,8.291e-05,2]
[406778758,1772178632035,-500.0,8.291e-05,2]
[406778759,1772178632045,-500.0,8.291e-05,2]
[406778760,1772178632055,-500.0,8.291e-05,2]
[406778761,1772178632064,-1744.6755,8.292e-05,2]
[406778762,1772178632073,-1778781.06713096,8.292e-05,2]
[406778763,1772178632085,-205032.82716606,8.292e-05,2]
[406778764,1772178632097,-16186.10570298,8.292e-05,2]
[406778765,1772178632106,-1765.77,8.326e-05,2]
[406778766,1772178632116,-500.0,8.414e-05,2]
[406778767,1772178632125,-1505.58790746,8.491e-05,2]
[406778768,1772178632135,-500.0,8.535e-05,2]
[406778769,1772178632144,-1500.0,8.591e-05,2]
[406778770,1772178632154,-1000.0,8.591e-05,2]
[406778771,1772178632163,-917.91915087,8.591e-05,2]
[406778772,1772178632173,-307.94482318,8.591e-05,2]
[406778773,1772178632182,-425.09831696,8.591e-05,2]
[406778774,1772178632191,-3727.16114904,8.591e-05,2]
[406778775,1772178632200,-47910.09,8.601e-05,2]
[406778776,1772178632210,-1000.0,8.653e-05,2]
[406778777,1772178632222,-358.0,8.719e-05,2]
[406778778,1772178632233,-251.94,8.892e-05,2]
[406778779,1772178632243,-294.0,8.937e-05,2]
[406778780,1772178632252,-1387.0,8.953e-05,2]
[406778781,1772178632262,-2023.53351649,9e-05,2]
[406778782,1772178632272,-366.0,9.062e-05,2]
[406778783,1772178632282,-432.0,9.098e-05,2]
[406778784,1772178632291,-307.83,9.102e-05,2]
[406778785,1772178632303,-255.0,9.12e-05,2]
[406778786,1772178632313,-1286.0,9.131e-05,2]
[406778787,1772178632323,-3343.5946949,9.241e-05,2]
[406778788,1772178632335,-497.55228091,9.241e-05,2]
[406778794,1772178637552,-1343.44849106,8.191e-05,2]
[406778801,1772178639668,-1998656.55150894,8.191e-05,2]
[406778802,1772178639678,-6158.85302419,9.241e-05,2]
[406778803,1772178639688,-1000.0,9.734e-05,2]
[406778804,1772178639697,-166.66,9.807e-05,2]
[406778805,1772178639707,-169.63337,9.864e-05,2]
[406778806,1772178639716,-151.0,0.0001,2]
[406778807,1772178639725,-151.0,0.0001,2]
[406778808,1772178639735,-151.0,0.0001,2]
[406778809,1772178639743,-151.0,0.0001,2]
[406778810,1772178639753,-151.0,0.0001,2]
[406778811,1772178639763,-151.0,0.0001,2]
[406778812,1772178639772,-151.0,0.0001,2]
[406778813,1772178639782,-151.0,0.0001,2]
[406778814,1772178639791,-151.0,0.0001,2]
[406778815,1772178639800,-151.0,0.0001,2]
[406778816,1772178639810,-151.0,0.0001,2]
[406778817,1772178639820,-151.0,0.0001,2]
[406778818,1772178639830,-151.0,0.0001,2]
[406778819,1772178639839,-151.0,0.0001,2]
[406778820,1772178639848,-151.0,0.0001,2]
[406778821,1772178639858,-151.0,0.0001,2]
[406778822,1772178639867,-151.0,0.0001,2]
[406778823,1772178639877,-151.0,0.0001,2]
[406778824,1772178639886,-151.0,0.0001,2]
[406778825,1772178639896,-151.0,0.0001,2]
[406778826,1772178639905,-465.05,0.0001,2]
[406778827,1772178639915,-1413.97432054,0.0001,2]
[406778828,1772178639924,-1000.0,0.0001,2]
[406778829,1772178639933,-151.0,0.0001,2]
[406778830,1772178639943,-251.94,0.00010004,2]
[406778831,1772178639952,-166.66,0.00010131,2]
[406778832,1772178639961,-330.18,0.00010136,2]
[406778833,1772178639971,-465.05,0.00010274,2]
[406778834,1772178639980,-9802.1525516,0.00010287,2]
[406778835,1772178639989,-333148.990821,0.00010287,2]
[406778836,1772178639999,-498.6624863,0.00010287,2]
[406778837,1772178640009,-500.0,0.000103,2]
[406778838,1772178640017,-500.0,0.000103,2]
[406778839,1772178640026,-500.0,0.000103,2]
[406778840,1772178640036,-500.0,0.000103,2]
[406778841,1772178640045,-500.0,0.000103,2]
[406778842,1772178640055,-500.0,0.000103,2]
[406778843,1772178640064,-500.0,0.000103,2]
[406778844,1772178640073,-500.0,0.000103,2]
[406778845,1772178640082,-500.0,0.000103,2]
[406778846,1772178640091,-500.0,0.000103,2]
[406778847,1772178640101,-500.0,0.000103,2]
[406778848,1772178640109,-500.0,0.000103,2]
[406778849,1772178640119,-500.0,0.000103,2]
[406778850,1772178640129,-500.0,0.000103,2]
[406778851,1772178640139,-200.0,0.00010375,2]
[406778852,1772178640148,-162.74,0.00010397,2]
[406778853,1772178640157,-166.66,0.00010455,2]
[406778854,1772178640167,-9999.99,0.00010475,2]
[406778855,1772178640176,-29999.99,0.00010475,2]
[406778856,1772178640185,-4000.0,0.00010482,2]
[406778857,1772178640194,-200.0,0.00010534,2]
[406778858,1772178640204,-465.05,0.00010548,2]
[406778859,1772178640213,-330.18,0.00010573,2]
[406778860,1772178640226,-4000.0,0.00010744,2]
[406778862,1772178640235,-166.66,0.00010778,2]
[406778864,1772178640245,-1000.0,0.00010816,2]
[406778865,1772178640254,-465.05,0.00010822,2]
[406778866,1772178640266,-1982.78963655,0.000109,2]
[406778867,1772178640275,-2383.69,0.00010959,2]
[406778868,1772178640284,-150.0,0.00010959,2]
[406778869,1772178640295,-150.0,0.00010959,2]
[406778870,1772178640307,-166.66,0.00010959,2]
[406778871,1772178640317,-1000.0,0.00011,2]
[406778872,1772178640326,-4000.0,0.00011006,2]
[406778873,1772178640336,-330.18,0.00011009,2]
[406778874,1772178640346,-166.66,0.00011068,2]
[406778875,1772178640356,-465.0949579,0.00011096,2]
[406778876,1772178640365,-166.66,0.00011102,2]
[406778877,1772178640375,-251.94,0.00011116,2]
[406778878,1772178640385,-1512.33,0.00011129,2]
[406778879,1772178640394,-166.66,0.00011178,2]
[406778880,1772178640404,-150.0,0.00011233,2]
[406778881,1772178640413,-213.26045152,0.00011241,2]
[406778882,1772178640422,-4000.0,0.00011268,2]
[406778883,1772178640432,-166.66,0.00011288,2]
[406778884,1772178640441,-166.66,0.00011397,2]
[406778885,1772178640450,-166.66,0.00011426,2]
[406778886,1772178640459,-330.18,0.00011446,2]
[406778887,1772178640468,-4265.24,0.00011507,2]
[406778888,1772178640478,-166.66,0.00011507,2]
[406778889,1772178640487,-4000.0,0.00011531,2]
[406778890,1772178640496,-150.0,0.00011653,2]
[406778891,1772178640505,-214.50715051,0.00011653,2]
[406778892,1772178640514,-157.13116755,0.00011653,2]
[406778893,1772178640522,-262.60482899,0.00011653,2]
[406778894,1772178640531,-500.0,0.00011653,2]
[406778895,1772178640540,-500.0,0.00011653,2]
[406778896,1772178640549,-150.0,0.00011653,2]
[406778897,1772178640558,-706.0,0.00011653,2]
[406778898,1772178640567,-500.0,0.00011653,2]
[406778899,1772178640576,-150.0,0.00011653,2]
[406778900,1772178640585,-150.0,0.00011653,2]
[406778901,1772178640594,-150.0,0.00011653,2]
[406778902,1772178640603,-500.0,0.00011653,2]
[406778903,1772178640611,-477.0,0.00011653,2]
[406778904,1772178640788,-150.0,0.00011653,2]
[406778905,1772178640798,-500.0,0.00011653,2]
[406778906,1772178640807,-150.0,0.00011653,2]
[406778907,1772178640816,-468.0,0.00011653,2]
[406778908,1772178640825,-150.0,0.00011653,2]
[406778909,1772178640834,-150.0,0.00011653,2]
[406778910,1772178640843,-150.0,0.00011653,2]
[406778911,1772178640852,-150.0,0.00011708,2]
[406778912,1772178640862,-500.0,0.00011708,2]
[406778913,1772178640871,-500.0,0.00011708,2]
[406778914,1772178640880,-203.92749261,0.00011708,2]
[406778915,1772178640889,-706.0,0.00011708,2]
[406778916,1772178640898,-500.0,0.00011708,2]
[406778917,1772178640908,-150.0,0.00011708,2]
[406778918,1772178640917,-150.0,0.00011708,2]
[406778919,1772178640927,-150.0,0.00011708,2]
[406778920,1772178640936,-500.0,0.00011708,2]
[406778921,1772178640944,-477.0,0.00011708,2]
[406778922,1772178640953,-500.0,0.00011708,2]
[406778923,1772178640963,-468.0,0.00011708,2]
[406778924,1772178640978,-150.0,0.00011708,2]
[406778925,1772178640987,-252.23116105,0.00011708,2]
[406778926,1772178640996,-150.0,0.00011708,2]
[406778927,1772178641005,-154.38169,0.00011719,2]
[406778928,1772178641014,-200.0,0.00011763,2]
[406778929,1772178641024,-500.0,0.00011763,2]
[406778930,1772178641033,-500.0,0.00011763,2]
[406778931,1772178641042,-706.0,0.00011763,2]
[406778932,1772178641051,-500.0,0.00011763,2]
[406778933,1772178641060,-205.97279745,0.00011763,2]
[406778934,1772178641069,-150.0,0.00011763,2]
[406778935,1772178641077,-150.0,0.00011763,2]
[406778936,1772178641086,-500.0,0.00011763,2]
[406778937,1772178641095,-477.0,0.00011763,2]
[406778938,1772178641104,-500.0,0.00011763,2]
[406778939,1772178641113,-468.0,0.00011763,2]
[406778940,1772178641122,-200.0,0.00011763,2]
[406778941,1772178641132,-150.0,0.00011763,2]
[406778942,1772178641142,-500.0,0.00011817,2]
[406778943,1772178641151,-500.0,0.00011817,2]
[406778944,1772178641160,-706.0,0.00011817,2]
[406778945,1772178641169,-500.0,0.00011817,2]
[406778946,1772178641179,-155.24410738,0.00011817,2]
[406778947,1772178641188,-262.28374388,0.00011817,2]
[406778948,1772178641197,-500.0,0.00011817,2]
[406778949,1772178641207,-477.0,0.00011817,2]
[406778950,1772178641217,-500.0,0.00011817,2]
[406778951,1772178641230,-468.0,0.00011817,2]
[406778952,1772178641239,-158.41955894,0.00011817,2]
[406778953,1772178641249,-500.0,0.00011872,2]
[406778954,1772178641258,-500.0,0.00011872,2]
[406778955,1772178641268,-706.0,0.00011872,2]
[406778956,1772178641277,-500.0,0.00011872,2]
[406778957,1772178641286,-500.0,0.00011872,2]
[406778958,1772178641296,-477.0,0.00011872,2]
[406778959,1772178641305,-500.0,0.00011872,2]
[406778960,1772178641314,-468.0,0.00011872,2]
[406778961,1772178641323,-9802.1525516,0.00011877,2]
[406778962,1772178641332,-330.18,0.00011882,2]
[406778963,1772178641341,-1000.0,0.00011898,2]
[406778964,1772178641350,-9763.886945,0.000119,2]
[406778965,1772178641359,-2346.00955476,0.000119,2]
[406778966,1772178641368,-307.5751693,0.000119,2]
[406778967,1772178641378,-500.0,0.00011927,2]
[406778968,1772178641387,-164.37590583,0.00011927,2]
[406778969,1772178641396,-706.0,0.00011927,2]
[406778970,1772178641405,-500.0,0.00011927,2]
[406778971,1772178641413,-477.0,0.00011927,2]
[406778972,1772178641422,-500.0,0.00011927,2]
[406778973,1772178641432,-500.0,0.00011927,2]
[406778974,1772178641441,-468.0,0.00011927,2]
[406778975,1772178641450,-498.6624863,0.00011932,2]
[406778976,1772178641468,-500.0,0.00011982,2]
[406778977,1772178641490,-706.0,0.00011982,2]
[406778978,1772178641508,-500.0,0.00011982,2]
[406778979,1772178641518,-477.0,0.00011982,2]
[406778980,1772178641528,-500.0,0.00011982,2]
[406778981,1772178641538,-500.0,0.00011982,2]
[406778982,1772178641549,-468.0,0.00011982,2]
[406778983,1772178641560,-333148.990821,0.00011997,2]
[406778984,1772178641569,-1000.0,0.00012,2]
[406778985,1772178641579,-500.0,0.00012037,2]
[406778986,1772178641588,-706.0,0.00012037,2]
[406778987,1772178641597,-500.0,0.00012037,2]
[406778988,1772178641607,-477.0,0.00012037,2]
[406778989,1772178641616,-500.0,0.00012037,2]
[406778990,1772178641627,-457.08298048,0.00012037,2]
[406778991,1772178641638,-468.0,0.00012037,2]
[406778992,1772178641647,-52754.8,0.00012055,2]
[406778993,1772178641658,-500.0,0.00012091,2]
[406778994,1772178641668,-706.0,0.00012091,2]
[406778995,1772178641678,-500.0,0.00012091,2]
[406778996,1772178641688,-477.0,0.00012091,2]
[406778997,1772178641698,-500.0,0.00012091,2]
[406778998,1772178641708,-468.0,0.00012091,2]
[406778999,1772178641719,-500.0,0.00012146,2]
[406779000,1772178641729,-706.0,0.00012146,2]
[406779001,1772178641740,-500.0,0.00012146,2]
[406779002,1772178641751,-477.0,0.00012146,2]
[406779003,1772178641762,-500.0,0.00012146,2]
[406779004,1772178641774,-468.0,0.00012146,2]
[406779005,1772178641783,-500.0,0.00012201,2]
[406779006,1772178641795,-706.0,0.00012201,2]
[406779007,1772178641805,-249.73245123,0.00012201,2]
[406779008,1772178641814,-477.0,0.00012201,2]
[406779009,1772178641825,-309.26908441,0.00012201,2]
[406779010,1772178641835,-468.0,0.00012201,2]
[406779011,1772178641844,-251.94,0.00012227,2]
[406779012,1772178641854,-500.0,0.00012256,2]
[406779013,1772178641865,-706.0,0.00012256,2]
[406779014,1772178641875,-477.0,0.00012256,2]
[406779015,1772178641886,-468.0,0.00012256,2]
[406779016,1772178641896,-500.0,0.00012311,2]
[406779017,1772178641907,-706.0,0.00012311,2]
[406779018,1772178641917,-477.0,0.00012311,2]
[406779019,1772178641928,-468.0,0.00012311,2]
[406779020,1772178641937,-330.18,0.00012319,2]
[406779021,1772178641947,-500.25,0.00012329,2]
[406779022,1772178641958,-203.560044,0.0001233,2]
[406779023,1772178641969,-500.0,0.00012365,2]
[406779024,1772178641979,-706.0,0.00012365,2]
[406779025,1772178641989,-477.0,0.00012365,2]
[406779026,1772178642001,-468.0,0.00012365,2]
[406779027,1772178642011,-500.0,0.0001242,2]
[406779028,1772178642022,-706.0,0.0001242,2]
[406779029,1772178642033,-477.0,0.0001242,2]
[406779030,1772178642044,-468.0,0.0001242,2]
[406779031,1772178642056,-500.0,0.00012475,2]
[406779032,1772178642065,-706.0,0.00012475,2]
[406779033,1772178642076,-477.0,0.00012475,2]
[406779034,1772178642085,-468.0,0.00012475,2]
[406779035,1772178642093,-500.0,0.0001253,2]
[406779036,1772178642102,-706.0,0.0001253,2]
[406779037,1772178642112,-477.0,0.0001253,2]
[406779038,1772178642121,-468.0,0.0001253,2]
[406779039,1772178642130,-247.09622115,0.00012585,2]
[406779040,1772178642139,-706.0,0.00012585,2]
[406779041,1772178642148,-477.0,0.00012585,2]
[406779042,1772178642157,-468.0,0.00012585,2]
[406779043,1772178642166,-706.0,0.00012639,2]
[406779044,1772178642175,-477.0,0.00012639,2]
[406779045,1772178642185,-468.0,0.00012639,2]
[406779046,1772178642194,-1552.997656,0.00012672,2]
[406779047,1772178642203,-1342.507702,0.00012672,2]
[406779048,1772178642212,-706.0,0.00012694,2]
[406779049,1772178642225,-477.0,0.00012694,2]
[406779050,1772178642240,-468.0,0.00012694,2]
[406779051,1772178642253,-706.0,0.00012749,2]
[406779052,1772178642264,-477.0,0.00012749,2]
[406779053,1772178642275,-468.0,0.00012749,2]
[406779054,1772178642287,-330.18,0.00012755,2]
[406779055,1772178642297,-706.0,0.00012804,2]
[406779057,1772178642306,-477.0,0.00012804,2]
[406779058,1772178642317,-468.0,0.00012804,2]
[406779059,1772178642333,-706.0,0.00012858,2]
[406779060,1772178642342,-477.0,0.00012858,2]
[406779061,1772178642351,-500.0,0.0001289,2]
[406779062,1772178642362,-500.0,0.0001289,2]
[406779063,1772178642372,-500.0,0.0001289,2]
[406779064,1772178642383,-500.0,0.0001289,2]
[406779066,1772178642394,-500.0,0.0001289,2]
[406779068,1772178642404,-500.0,0.0001289,2]
[406779070,1772178642417,-272.45823792,0.0001289,2]
[406779072,1772178642428,-500.0,0.0001289,2]
[406779075,1772178642439,-500.0,0.0001289,2]
[406779078,1772178642451,-500.0,0.0001289,2]
[406779079,1772178642461,-500.0,0.0001289,2]
[406779080,1772178642472,-500.0,0.0001289,2]
[406779081,1772178642482,-500.0,0.0001289,2]
[406779082,1772178642492,-500.0,0.0001289,2]
[406779083,1772178642503,-500.0,0.0001289,2]
[406779084,1772178642513,-500.0,0.0001289,2]
[406779085,1772178642523,-500.0,0.0001289,2]
[406779086,1772178642534,-500.0,0.0001289,2]
[406779088,1772178642545,-500.0,0.0001289,2]
[406779090,1772178642554,-272.45823792,0.0001289,2]
[406779091,1772178642565,-272.45823792,0.0001289,2]
[406779093,1772178642575,-272.45823792,0.0001289,2]
[406779094,1772178642586,-272.45823792,0.0001289,2]
[406779095,1772178642595,-272.45823792,0.0001289,2]
[406779096,1772178642605,-272.45823792,0.0001289,2]
[406779097,1772178642615,-272.45823792,0.0001289,2]
[406779098,1772178642625,-272.45823792,0.0001289,2]
[406779099,1772178642635,-272.45823792,0.0001289,2]
[406779100,1772178642647,-718.80649406,0.00012913,2]
[406779101,1772178642659,-477.30233963,0.00012913,2]
[406779102,1772178642670,-1000.0,0.00012979,2]
[406779103,1772178642680,-1000.0,0.00013,2]
[406779104,1772178642690,-1413.97432054,0.00013101,2]
[406779105,1772178642701,-1982.7896365,0.00013141,2]
[406779106,1772178642712,-330.18,0.00013192,2]
[406779107,1772178642722,-251.94,0.00013339,2]
[406779108,1772178642734,-3240.0,0.00013425,2]
[406779109,1772178642745,-9802.1525516,0.00013467,2]
[406779110,1772178642755,-498.6624863,0.00013577,2]
[406779111,1772178642766,-330.18,0.00013628,2]
[406779112,1772178642776,-500.0,0.00013698,2]
[406779113,1772178642787,-500.0,0.00013698,2]
[406779114,1772178642798,-500.0,0.00013698,2]
[406779115,1772178642808,-500.0,0.00013698,2]
[406779116,1772178642817,-500.0,0.00013698,2]
[406779117,1772178642827,-500.0,0.00013698,2]
[406779118,1772178642838,-500.0,0.00013698,2]
[406779119,1772178642848,-500.0,0.00013698,2]
[406779120,1772178642860,-500.0,0.00013698,2]
[406779121,1772178642869,-500.0,0.00013698,2]
[406779122,1772178642879,-500.0,0.00013698,2]
[406779123,1772178642889,-508.1813736,0.00013698,2]
[406779124,1772178642901,-500.0,0.00013698,2]
[406779125,1772178642911,-513.08555315,0.00013698,2]
[406779126,1772178642923,-500.0,0.00013698,2]
[406779127,1772178642934,-500.0,0.00013698,2]
[406779128,1772178642946,-500.0,0.00013698,2]
[406779129,1772178642957,-500.0,0.00013698,2]
[406779130,1772178642968,-500.0,0.00013698,2]
[406779131,1772178642979,-500.0,0.00013698,2]
[406779132,1772178642990,-500.0,0.00013698,2]
[406779133,1772178643000,-500.0,0.00013698,2]
[406779134,1772178643011,-500.0,0.00013698,2]
[406779136,1772178643021,-500.0,0.00013698,2]
[406779138,1772178643033,-500.0,0.00013698,2]
[406779140,1772178643043,-500.0,0.00013698,2]
[406779142,1772178643054,-500.0,0.00013698,2]
[406779144,1772178643065,-500.0,0.00013698,2]
[406779146,1772178643077,-500.0,0.00013698,2]
[406779160,1772178643214,-500.0,0.00013698,2]
[406779162,1772178643230,-500.0,0.00013698,2]
[406779164,1772178643240,-500.0,0.00013698,2]
[406779166,1772178643249,-500.0,0.00013698,2]
[406779168,1772178643259,-636.48559846,0.00013698,2]
[406779170,1772178643268,-500.0,0.00013698,2]
[406779172,1772178643277,-500.0,0.00013698,2]
[406779174,1772178643287,-500.0,0.00013698,2]
[406779176,1772178643298,-500.0,0.00013698,2]
[406779178,1772178643306,-500.0,0.00013698,2]
[406779180,1772178643315,-500.0,0.00013698,2]
[406779182,1772178643324,-500.0,0.00013698,2]
[406779184,1772178643333,-500.0,0.00013698,2]
[406779186,1772178643342,-500.0,0.00013698,2]
[406779188,1772178643350,-500.0,0.00013698,2]
[406779190,1772178643359,-500.0,0.00013698,2]
[406779192,1772178643368,-500.0,0.00013698,2]
[406779194,1772178643378,-500.0,0.00013698,2]
[406779196,1772178643387,-500.0,0.00013698,2]
[406779198,1772178643397,-500.0,0.00013698,2]
[406779200,1772178643407,-500.0,0.00013698,2]
[406779202,1772178643416,-500.0,0.00013698,2]
[406779204,1772178643426,-500.0,0.00013698,2]
[406779206,1772178643435,-500.0,0.00013698,2]
[406779208,1772178643444,-500.0,0.00013698,2]
[406779210,1772178643453,-500.0,0.00013698,2]
[406779212,1772178643462,-500.0,0.00013698,2]
[406779214,1772178643470,-632.8120254,0.00013698,2]
[406779216,1772178643479,-500.0,0.00013698,2]
[406779218,1772178643488,-492.7820752,0.00013698,2]
[406779220,1772178643497,-500.0,0.00013698,2]
[406779222,1772178643506,-500.0,0.00013698,2]
[406779224,1772178643515,-500.0,0.00013698,2]
[406779226,1772178643523,-500.0,0.00013698,2]
[406779228,1772178643533,-500.0,0.00013698,2]
[406779230,1772178643542,-500.0,0.00013698,2]
[406779232,1772178643551,-500.0,0.00013698,2]
[406779234,1772178643560,-500.0,0.00013698,2]
[406779236,1772178643568,-500.0,0.00013698,2]
[406779238,1772178643577,-500.0,0.00013698,2]
[406779240,1772178643586,-500.0,0.00013698,2]
[406779242,1772178643595,-500.0,0.00013698,2]
[406779244,1772178643604,-500.0,0.00013698,2]
[406779246,1772178643613,-500.0,0.00013698,2]
[406779248,1772178643622,-500.0,0.00013698,2]
[406779250,1772178643631,-500.0,0.00013698,2]
[406779252,1772178643640,-500.0,0.00013698,2]
[406779254,1772178643651,-500.0,0.00013698,2]
[406779256,1772178643660,-500.0,0.00013698,2]
[406779258,1772178643668,-500.0,0.00013698,2]
[406779260,1772178643677,-500.0,0.00013698,2]
[406779262,1772178643686,-500.0,0.00013698,2]
[406779264,1772178643695,-500.0,0.00013698,2]
[406779266,1772178643704,-500.0,0.00013698,2]
[406779268,1772178643713,-500.0,0.00013698,2]
[406779270,1772178643722,-500.0,0.00013698,2]
[406779272,1772178643731,-500.0,0.00013698,2]
[406779274,1772178643741,-500.0,0.00013698,2]
[406779276,1772178643751,-500.0,0.00013698,2]
[406779278,1772178643761,-500.0,0.00013698,2]
[406779280,1772178643770,-500.0,0.00013698,2]
[406779282,1772178643778,-500.0,0.00013698,2]
[406779284,1772178643788,-180.14,0.00013698,2]
[406779286,1772178643797,-500.0,0.00013698,2]
[406779288,1772178643806,-500.0,0.00013698,2]
[406779290,1772178643815,-500.0,0.00013698,2]
[406779292,1772178643828,-500.0,0.00013698,2]
[406779294,1772178643837,-500.0,0.00013698,2]
[406779296,1772178643846,-500.0,0.00013698,2]
[406779298,1772178643855,-593.89214064,0.00013698,2]
[406779300,1772178643864,-500.0,0.00013698,2]
[406779302,1772178643873,-500.0,0.00013698,2]
[406779304,1772178643882,-500.0,0.00013698,2]
[406779306,1772178643891,-500.0,0.00013698,2]
[406779308,1772178643900,-500.0,0.00013698,2]
[406779310,1772178643909,-583.84924792,0.00013698,2]
[406779312,1772178643918,-500.0,0.00013698,2]
[406779314,1772178643927,-500.0,0.00013698,2]
[406779316,1772178643936,-500.0,0.00013698,2]
[406779318,1772178643945,-500.0,0.00013698,2]
[406779320,1772178643955,-500.0,0.00013698,2]
[406779322,1772178643964,-500.0,0.00013698,2]
[406779324,1772178643973,-500.0,0.00013698,2]
[406779326,1772178643982,-500.0,0.00013698,2]
[406779328,1772178643992,-500.0,0.00013698,2]
[406779330,1772178644002,-500.0,0.00013698,2]
[406779333,1772178644011,-522.57762627,0.00013698,2]
[406779335,1772178644020,-500.0,0.00013698,2]
[406779337,1772178644029,-500.0,0.00013698,2]
[406779339,1772178644038,-502.14269457,0.00013698,2]
[406779340,1772178644047,-528.85,0.00013698,2]